[Event "16th EWICC 2015"]
[Site "Kutaisi"]
[Date "2015.06.03"]
[Round "10"]
[White "Guramishvili, Sopiko"]
[Black "Petrenko, Svetlana"]
[Result "1-0"]
[ECO "D35"]
[WhiteElo "2370"]
[BlackElo "2207"]
[Annotator "Robot 11"]
[PlyCount "81"]
[EventDate "2015.??.??"]
[EventCountry "GEO"]
[TimeControl "900+10"]

1. d4 {[%emt 0:00:02]} d5 {[%emt 0:00:02]} 2. c4 {[%emt 0:00:03]} e6 {[%emt 0:
00:01]} 3. Nc3 {[%emt 0:00:05]} Nf6 {[%emt 0:00:03]} 4. cxd5 {[%emt 0:00:04]}
exd5 {[%emt 0:00:02]} 5. Bg5 {[%emt 0:00:02]} Be7 {[%emt 0:00:05]} 6. e3 {
[%emt 0:00:04]} O-O {[%emt 0:00:26]} 7. Bd3 {[%emt 0:00:08]} h6 {[%emt 0:00:10]
} 8. Bf4 {[%emt 0:00:26]} c6 {[%emt 0:00:20]} 9. h3 {[%emt 0:00:08]} b5 {[%emt
0:00:10]} 10. Nf3 {[%emt 0:00:14]} b4 {[%emt 0:00:07]} 11. Na4 {[%emt 0:01:01]}
Qa5 {[%emt 0:01:15]} 12. O-O {[%emt 0:00:17]} Ba6 {[%emt 0:00:06]} 13. Ne5 {
[%emt 0:02:54]} Bxd3 {[%emt 0:00:47]} 14. Nxd3 {[%emt 0:00:03]} Nbd7 {[%emt 0:
00:18]} 15. b3 {[%emt 0:01:27]} Qb5 {[%emt 0:00:53]} 16. Rc1 {[%emt 0:00:20]}
a5 {[%emt 0:00:26]} 17. Rc2 {[%emt 0:00:49]} Rac8 {[%emt 0:00:34]} 18. Ndc5 {
[%emt 0:01:10]} Rfd8 {[%emt 0:00:48]} 19. Qf3 {[%emt 0:00:44]} Nf8 {[%emt 0:02:
22]} 20. Rfc1 {[%emt 0:00:13]} Ng6 {[%emt 0:00:28]} 21. Bg3 {[%emt 0:00:38]}
Bd6 {[%emt 0:00:04]} 22. Bxd6 {[%emt 0:00:43]} Rxd6 {[%emt 0:00:02]} 23. Nb2 {
[%emt 0:00:27]} Re8 {[%emt 0:00:42]} 24. Qg3 {[%emt 0:00:29]} Red8 {[%emt 0:00:
14]} 25. f3 {[%emt 0:01:00]} Nf8 {[%emt 0:02:53]} 26. Nbd3 {[%emt 0:00:13]} Ne6
{[%emt 0:00:26]} 27. Ne5 {[%emt 0:00:49]} Nh5 {[%emt 0:03:11]} 28. Qh4 {[%emt
0:00:36]} f6 {[%emt 0:00:59]} 29. Nxe6 {[%emt 0:00:22]} Rxe6 {[%emt 0:00:05]}
30. Nxc6 {[%emt 0:00:20]} Rde8 {[%emt 0:00:38]} 31. Qxh5 {[%emt 0:00:11]} Rxe3
{[%emt 0:00:48]} 32. Rc5 {[%emt 0:01:05]} Re1+ {[%emt 0:00:10]} 33. Kh2 {[%emt
0:00:21]} Qe2 {[%emt 0:00:31]} 34. Rxe1 {[%emt 0:00:30]} Qxe1 {[%emt 0:00:04]}
35. Ne5 {[%emt 0:00:19]} Rf8 {[%emt 0:00:07]} 36. Rc7 {[%emt 0:00:27]} Qe3 {
[%emt 0:00:30]} 37. Qg4 {[%emt 0:00:05]} Qg5 {[%emt 0:00:11]} 38. Qxg5 {[%emt
0:00:08]} hxg5 {[%emt 0:00:02]} 39. Nc6 {[%emt 0:00:33]} Ra8 {[%emt 0:00:03]}
40. Ra7 {[%emt 0:00:17]} Re8 {[%emt 0:00:20]} 41. Rxa5 {[%emt 0:00:03]} 1-0

[Event "16th EWICC 2015"]
[Site "Kutaisi"]
[Date "2015.06.03"]
[Round "10"]
[White "Lomineishvili, Maia"]
[Black "Charkhalashvili, Inga"]
[Result "0-1"]
[ECO "D30"]
[WhiteElo "2364"]
[BlackElo "2318"]
[Annotator "Robot 11"]
[PlyCount "110"]
[EventDate "2015.??.??"]
[EventCountry "GEO"]
[TimeControl "900+10"]

1. d4 {[%emt 0:00:03]} d5 {[%emt 0:00:06]} 2. c4 {[%emt 0:00:04]} e6 {[%emt 0:
00:02]} 3. Nf3 {[%emt 0:00:14]} Nf6 {[%emt 0:00:02]} 4. Qc2 {[%emt 0:00:32]}
Bb4+ {[%emt 0:01:29]} 5. Nbd2 {[%emt 0:00:02]} O-O {[%emt 0:00:06]} 6. e3 {
[%emt 0:00:02]} b6 {[%emt 0:00:24]} 7. cxd5 {[%emt 0:00:26]} exd5 {[%emt 0:00:
02]} 8. Bd3 {[%emt 0:00:05]} Bb7 {[%emt 0:01:08]} 9. O-O {[%emt 0:00:13]} Bd6 {
[%emt 0:00:19]} 10. Ne5 {[%emt 0:00:08]} c5 {[%emt 0:00:13]} 11. Ndf3 {[%emt 0:
00:31]} Ne4 {[%emt 0:01:35]} 12. dxc5 {[%emt 0:02:28]} bxc5 {[%emt 0:00:13]}
13. Be2 {[%emt 0:02:44]} Qe7 {[%emt 0:00:54]} 14. Nd3 {[%emt 0:00:02]} Nd7 {
[%emt 0:00:11]} 15. Rd1 {[%emt 0:00:55]} Ndf6 {[%emt 0:00:29]} 16. h3 {[%emt 0:
00:24]} Rac8 {[%emt 0:00:30]} 17. Bd2 {[%emt 0:00:37]} Rfe8 {[%emt 0:00:42]}
18. Bf1 {[%emt 0:00:23]} Bb8 {[%emt 0:00:47]} 19. Bc3 {[%emt 0:00:56]} d4 {
[%emt 0:00:45]} 20. Be1 {[%emt 0:01:51]} c4 {[%emt 0:01:09]} 21. Nf4 {[%emt 0:
00:16]} d3 {[%emt 0:00:26]} 22. Nxd3 {[%emt 0:00:02]} cxd3 {[%emt 0:00:02]} 23.
Qxd3 {[%emt 0:00:02]} Nc5 {[%emt 0:00:08]} 24. Qa3 {[%emt 0:00:17]} Qc7 {[%emt
0:01:44]} 25. Ba5 {[%emt 0:00:03]} Qe7 {[%emt 0:00:28]} 26. Bb5 {[%emt 0:00:31]
} Bc6 {[%emt 0:00:43]} 27. Bxc6 {[%emt 0:00:11]} Rxc6 {[%emt 0:00:01]} 28. Rac1
{[%emt 0:00:43]} Rcc8 {[%emt 0:00:46]} 29. Bb4 {[%emt 0:00:18]} Nfe4 {[%emt 0:
00:12]} 30. Rc4 {[%emt 0:00:52]} f5 {[%emt 0:01:36]} 31. Rdc1 {[%emt 0:00:30]}
Bd6 {[%emt 0:00:01]} 32. Nd4 {[%emt 0:00:28]} Qe5 {[%emt 0:01:41]} 33. f4 {
[%emt 0:00:09]} Qd5 {[%emt 0:00:01]} 34. Nb5 {[%emt 0:00:03]} Bf8 {[%emt 0:00:
14]} 35. Qxa7 {[%emt 0:01:25]} Ra8 {[%emt 0:00:21]} 36. Qc7 {[%emt 0:00:11]}
Ne6 {[%emt 0:00:13]} 37. Qe5 {[%emt 0:00:17]} Qxe5 {[%emt 0:00:12]} 38. fxe5 {
[%emt 0:00:01]} Bxb4 {[%emt 0:00:04]} 39. Rxb4 {[%emt 0:00:01]} Rxa2 {[%emt 0:
00:12]} 40. Nd4 {[%emt 0:00:12]} N4c5 {[%emt 0:00:12]} 41. Nxe6 {[%emt 0:00:29]
} Nxe6 {[%emt 0:00:01]} 42. Rb7 {[%emt 0:00:03]} Ra5 {[%emt 0:00:08]} 43. b4 {
[%emt 0:00:23]} Rxe5 {[%emt 0:00:01]} 44. Rc3 {[%emt 0:00:02]} f4 {[%emt 0:00:
16]} 45. exf4 {[%emt 0:00:02]} Nxf4 {[%emt 0:00:01]} 46. Rcc7 {[%emt 0:00:05]}
Rg5 {[%emt 0:00:06]} 47. g4 {[%emt 0:00:20]} Nxh3+ 48. Kg2 Nf4+ {[%emt 0:00:04]
} 49. Kf3 {[%emt 0:00:03]} Ne6 {[%emt 0:00:01]} 50. Re7 {[%emt 0:00:03]} Rxe7 {
[%emt 0:00:07]} 51. Rxe7 {[%emt 0:00:01]} Nd4+ {[%emt 0:00:02]} 52. Kf4 {[%emt
0:00:03]} Rb5 {[%emt 0:00:03]} 53. Re8+ {[%emt 0:00:44]} Kf7 {[%emt 0:00:01]}
54. Rh8 {[%emt 0:00:02]} h6 {[%emt 0:00:06]} 55. g5 {[%emt 0:00:14]} Ne6+ {
[%emt 0:00:01]} 0-1

[Event "16th EWICC 2015"]
[Site "Kutaisi"]
[Date "2015.06.03"]
[Round "10"]
[White "Mammadzada, Gunay"]
[Black "Gevorgyan, Maria"]
[Result "1-0"]
[ECO "C42"]
[WhiteElo "2336"]
[BlackElo "2190"]
[Annotator "Robot 11"]
[PlyCount "95"]
[EventDate "2015.??.??"]
[EventCountry "GEO"]
[TimeControl "900+10"]

1. e4 {[%emt 0:00:04]} e5 {[%emt 0:00:04]} 2. Nf3 {[%emt 0:00:02]} Nf6 {[%emt
0:00:01]} 3. Nxe5 {[%emt 0:00:05]} d6 {[%emt 0:00:01]} 4. Nf3 {[%emt 0:00:05]}
Nxe4 {[%emt 0:00:01]} 5. d4 {[%emt 0:00:01]} d5 {[%emt 0:00:01]} 6. Bd3 {[%emt
0:00:06]} Nc6 {[%emt 0:00:02]} 7. O-O {[%emt 0:00:09]} Bg4 {[%emt 0:00:01]} 8.
c3 {[%emt 0:00:27]} Be7 {[%emt 0:00:04]} 9. Re1 {[%emt 0:00:02]} f5 {[%emt 0:
00:02]} 10. Nbd2 {[%emt 0:00:07]} O-O {[%emt 0:00:11]} 11. Qb3 {[%emt 0:00:11]}
Kh8 {[%emt 0:00:39]} 12. Qxb7 {[%emt 0:00:19]} Rf6 {[%emt 0:00:02]} 13. Qb3 {
[%emt 0:00:16]} Rg6 {[%emt 0:00:40]} 14. Bb5 {[%emt 0:01:28]} Na5 {[%emt 0:03:
05]} 15. Qa4 {[%emt 0:00:19]} c6 {[%emt 0:00:01]} 16. Bf1 {[%emt 0:01:23]} Bd6
{[%emt 0:00:37]} 17. Nxe4 {[%emt 0:02:06]} fxe4 {[%emt 0:03:26]} 18. Ne5 {
[%emt 0:01:17]} Bxe5 {[%emt 0:00:27]} 19. dxe5 {[%emt 0:00:02]} Nb7 {[%emt 0:
00:47]} 20. Bf4 {[%emt 0:01:15]} h5 {[%emt 0:00:16]} 21. Qd4 {[%emt 0:01:05]}
c5 {[%emt 0:02:51]} 22. Qd2 {[%emt 0:00:06]} c4 {[%emt 0:00:56]} 23. Qe3 {
[%emt 0:00:55]} Qc8 {[%emt 0:01:48]} 24. b3 {[%emt 0:01:51]} cxb3 {[%emt 0:00:
27]} 25. axb3 {[%emt 0:00:01]} h4 {[%emt 0:00:10]} 26. Ra6 {[%emt 0:00:55]} Be6
{[%emt 0:01:04]} 27. c4 {[%emt 0:01:55]} Nc5 {[%emt 0:00:10]} 28. Rd6 {[%emt 0:
00:07]} Nb7 {[%emt 0:00:03]} 29. Rxd5 {[%emt 0:01:07]} Bxd5 {[%emt 0:00:11]}
30. cxd5 {[%emt 0:00:01]} Qg4 {[%emt 0:00:06]} 31. h3 {[%emt 0:00:13]} Qf5 {
[%emt 0:00:57]} 32. Qxe4 {[%emt 0:00:26]} Qxe4 {[%emt 0:00:05]} 33. Rxe4 {
[%emt 0:00:01]} Nc5 {[%emt 0:00:12]} 34. Rc4 {[%emt 0:00:29]} Nxb3 {[%emt 0:00:
42]} 35. d6 {[%emt 0:00:49]} Na5 {[%emt 0:00:01]} 36. Rc7 {[%emt 0:00:01]} Re6
{[%emt 0:00:18]} 37. Bb5 {[%emt 0:00:21]} Rb8 {[%emt 0:00:21]} 38. d7 {[%emt 0:
00:22]} Rd8 {[%emt 0:00:03]} 39. Bg5 {[%emt 0:00:30]} Rxd7 {[%emt 0:00:14]} 40.
Bxd7 {[%emt 0:00:06]} Rxe5 {[%emt 0:00:01]} 41. Bxh4 {[%emt 0:00:06]} a6 {
[%emt 0:00:02]} 42. f4 {[%emt 0:00:04]} Rh5 {[%emt 0:00:06]} 43. Be1 {[%emt 0:
00:09]} Nb3 {[%emt 0:00:01]} 44. Bc3 {[%emt 0:00:22]} Rd5 {[%emt 0:00:36]} 45.
Bxg7+ {[%emt 0:00:08]} Kh7 {[%emt 0:00:03]} 46. Be6 {[%emt 0:00:09]} Rd1+ {
[%emt 0:00:02]} 47. Kh2 {[%emt 0:00:01]} Nd2 {[%emt 0:00:03]} 48. Bc3+ {[%emt
0:00:02]} 1-0

[Event "16th EWICC 2015"]
[Site "Kutaisi"]
[Date "2015.06.03"]
[Round "10"]
[White "Melia, Salome"]
[Black "Arabidze, Meri"]
[Result "1-0"]
[ECO "B42"]
[WhiteElo "2452"]
[BlackElo "2403"]
[Annotator "Robot 11"]
[PlyCount "115"]
[EventDate "2015.??.??"]
[EventCountry "GEO"]
[TimeControl "900+10"]

1. e4 {[%emt 0:00:02]} c5 {[%emt 0:00:01]} 2. Nf3 {[%emt 0:00:01]} e6 {[%emt 0:
00:00]} 3. d4 {[%emt 0:00:01]} cxd4 {[%emt 0:00:02]} 4. Nxd4 {[%emt 0:00:02]}
a6 {[%emt 0:00:01]} 5. Bd3 {[%emt 0:00:02]} Nf6 {[%emt 0:00:02]} 6. O-O {[%emt
0:00:10]} Qc7 {[%emt 0:00:01]} 7. Qe2 {[%emt 0:00:02]} d6 {[%emt 0:00:01]} 8.
c4 {[%emt 0:00:02]} g6 {[%emt 0:00:03]} 9. Nc3 {[%emt 0:00:02]} Bg7 {[%emt 0:
00:01]} 10. Nf3 {[%emt 0:00:01]} O-O {[%emt 0:00:02]} 11. Bf4 {[%emt 0:00:05]}
Nh5 {[%emt 0:00:58]} 12. Bd2 {[%emt 0:00:07]} Nd7 {[%emt 0:00:07]} 13. Rac1 {
[%emt 0:00:33]} b6 {[%emt 0:00:09]} 14. Rfd1 {[%emt 0:01:10]} Bb7 {[%emt 0:00:
01]} 15. Bb1 {[%emt 0:00:05]} Rac8 {[%emt 0:00:50]} 16. b3 {[%emt 0:00:01]} Nc5
{[%emt 0:00:06]} 17. h3 {[%emt 0:02:22]} Ba8 {[%emt 0:02:49]} 18. Nh2 {[%emt 0:
00:12]} Nf6 {[%emt 0:01:02]} 19. Ng4 {[%emt 0:02:05]} Nxg4 {[%emt 0:01:00]} 20.
hxg4 {[%emt 0:00:02]} Rcd8 {[%emt 0:00:09]} 21. Bg5 {[%emt 0:00:14]} Rd7 {
[%emt 0:00:13]} 22. b4 {[%emt 0:00:27]} Nb7 {[%emt 0:00:10]} 23. Be3 {[%emt 0:
00:54]} Rb8 {[%emt 0:00:36]} 24. Na4 {[%emt 0:02:12]} Nd8 {[%emt 0:00:09]} 25.
b5 {[%emt 0:00:19]} e5 {[%emt 0:01:39]} 26. bxa6 {[%emt 0:01:13]} Qa7 {[%emt 0:
01:26]} 27. Bd3 {[%emt 0:01:24]} Bc6 {[%emt 0:00:52]} 28. Nc3 {[%emt 0:00:32]}
Ne6 {[%emt 0:00:41]} 29. Nd5 {[%emt 0:01:11]} Nc5 {[%emt 0:01:13]} 30. Nb4 {
[%emt 0:00:18]} Ba8 {[%emt 0:00:11]} 31. f3 {[%emt 0:00:23]} Rc8 {[%emt 0:01:
24]} 32. Rb1 {[%emt 0:00:17]} Rb8 {[%emt 0:00:31]} 33. Qc2 {[%emt 0:00:37]} Rc7
{[%emt 0:00:24]} 34. Bf1 {[%emt 0:00:11]} Bf8 {[%emt 0:00:07]} 35. Qd2 {[%emt
0:00:12]} Rcc8 {[%emt 0:00:38]} 36. Kh2 {[%emt 0:00:43]} Bc6 {[%emt 0:00:20]}
37. Rdc1 {[%emt 0:00:42]} Bd7 {[%emt 0:00:12]} 38. Nd5 {[%emt 0:00:15]} Be6 {
[%emt 0:01:05]} 39. Nf6+ {[%emt 0:00:27]} Kh8 {[%emt 0:00:01]} 40. Be2 {[%emt
0:00:12]} Bg7 {[%emt 0:00:19]} 41. Nd5 {[%emt 0:00:30]} f5 {[%emt 0:00:45]} 42.
gxf5 {[%emt 0:00:23]} gxf5 {[%emt 0:00:01]} 43. exf5 {[%emt 0:00:26]} Bxf5 {
[%emt 0:00:02]} 44. Rb5 {[%emt 0:00:02]} Rg8 {[%emt 0:00:47]} 45. Kg1 {[%emt 0:
00:49]} Bd7 {[%emt 0:00:19]} 46. Rbb1 {[%emt 0:00:09]} Bf5 {[%emt 0:00:05]} 47.
Rb5 {[%emt 0:00:02]} Bd7 {[%emt 0:00:35]} 48. Rbb1 {[%emt 0:00:16]} Be8 {[%emt
0:00:12]} 49. Bxc5 {[%emt 0:00:14]} dxc5 {[%emt 0:00:01]} 50. Bd3 {[%emt 0:00:
04]} Qxa6 {[%emt 0:00:23]} 51. Be4 {[%emt 0:00:15]} Qa7 {[%emt 0:00:14]} 52.
Kf2 {[%emt 0:00:08]} h6 {[%emt 0:00:27]} 53. Rh1 {[%emt 0:00:01]} Rf8 {[%emt 0:
00:04]} 54. Rxh6+ {[%emt 0:00:23]} Bxh6 {[%emt 0:00:01]} 55. Qxh6+ Kg8 56. Qg5+
{[%emt 0:00:25]} Qg7 {[%emt 0:00:15]} 57. Ne7+ {[%emt 0:00:04]} Kf7 {[%emt 0:
00:16]} 58. Bd5# {[%emt 0:00:03]} 1-0

[Event "16th EWICC 2015"]
[Site "Kutaisi"]
[Date "2015.06.03"]
[Round "10"]
[White "Nikoladze, Sopio"]
[Black "Choladze, Tea"]
[Result "1-0"]
[ECO "D05"]
[WhiteElo "2155"]
[BlackElo "1755"]
[Annotator "Robot 11"]
[PlyCount "81"]
[EventDate "2015.??.??"]
[EventCountry "GEO"]
[TimeControl "900+10"]

1. d4 {[%emt 0:00:01]} d5 {[%emt 0:00:01]} 2. Nf3 Nf6 {[%emt 0:00:05]} 3. e3 {
[%emt 0:00:03]} e6 {[%emt 0:00:01]} 4. Bd3 {[%emt 0:00:03]} Bd6 {[%emt 0:00:04]
} 5. b3 {[%emt 0:00:02]} O-O {[%emt 0:00:04]} 6. Bb2 {[%emt 0:00:01]} Nbd7 {
[%emt 0:00:02]} 7. Nbd2 {[%emt 0:00:02]} Re8 {[%emt 0:00:03]} 8. Ne5 {[%emt 0:
00:02]} c5 {[%emt 0:00:12]} 9. f4 {[%emt 0:00:03]} a6 {[%emt 0:00:19]} 10. a4 {
[%emt 0:00:05]} b6 {[%emt 0:00:21]} 11. O-O {[%emt 0:00:09]} Bb7 {[%emt 0:00:
03]} 12. Qf3 {[%emt 0:00:02]} c4 13. bxc4 {[%emt 0:00:35]} dxc4 {[%emt 0:01:12]
} 14. Bxh7+ {[%emt 0:00:09]} Nxh7 {[%emt 0:00:35]} 15. Qxb7 {[%emt 0:00:04]}
Bxe5 {[%emt 0:00:15]} 16. fxe5 {[%emt 0:00:04]} Rc8 {[%emt 0:00:50]} 17. c3 {
[%emt 0:00:09]} a5 {[%emt 0:00:29]} 18. Ba3 {[%emt 0:00:04]} Rc7 {[%emt 0:00:
23]} 19. Qf3 {[%emt 0:00:08]} Nxe5 {[%emt 0:00:22]} 20. Qh5 {[%emt 0:00:34]}
Ng6 {[%emt 0:00:13]} 21. Qb5 {[%emt 0:00:10]} e5 {[%emt 0:01:06]} 22. Nxc4 {
[%emt 0:00:31]} exd4 {[%emt 0:00:37]} 23. cxd4 {[%emt 0:00:04]} Re6 {[%emt 0:
00:09]} 24. Rac1 {[%emt 0:00:29]} Nf6 {[%emt 0:00:28]} 25. Qg5 {[%emt 0:00:10]}
Qd7 {[%emt 0:00:36]} 26. Qb5 {[%emt 0:00:38]} Qd8 {[%emt 0:00:07]} 27. Rb1 {
[%emt 0:01:40]} Nd5 {[%emt 0:00:08]} 28. Rb3 {[%emt 0:00:05]} Rec6 {[%emt 0:00:
27]} 29. Nd2 {[%emt 0:00:11]} Nc3 {[%emt 0:00:07]} 30. Qh5 {[%emt 0:00:28]}
Nxa4 {[%emt 0:01:44]} 31. Nf3 {[%emt 0:00:20]} Nc3 {[%emt 0:00:13]} 32. Ng5 {
[%emt 0:00:10]} Ne2+ {[%emt 0:01:55]} 33. Kh1 {[%emt 0:00:04]} Nf8 {[%emt 0:02:
29]} 34. Nxf7 {[%emt 0:00:48]} Rxf7 {[%emt 0:00:28]} 35. Qxf7+ {[%emt 0:00:03]}
Kh7 {[%emt 0:00:03]} 36. Qh5+ {[%emt 0:00:08]} Rh6 {[%emt 0:00:05]} 37. Qxe2 {
[%emt 0:00:05]} Qc7 {[%emt 0:00:27]} 38. g4 {[%emt 0:00:24]} Ne6 {[%emt 0:00:
30]} 39. Qg2 {[%emt 0:00:14]} Ng5 {[%emt 0:00:23]} 40. d5 {[%emt 0:00:46]} a4 {
[%emt 0:00:07]} 41. d6 {[%emt 0:00:30]} 1-0

[Event "16th EWICC 2015"]
[Site "Kutaisi"]
[Date "2015.06.03"]
[Round "10"]
[White "Sviridova, Vlada"]
[Black "Paehtz, Elisabeth"]
[Result "1/2-1/2"]
[ECO "A41"]
[WhiteElo "2087"]
[BlackElo "2473"]
[Annotator "Robot 11"]
[PlyCount "115"]
[EventDate "2015.??.??"]
[EventCountry "GEO"]
[TimeControl "900+10"]

1. d4 {[%emt 0:00:01]} d6 {[%emt 0:00:04]} 2. Nf3 {[%emt 0:00:02]} g6 {[%emt 0:
00:01]} 3. c4 {[%emt 0:00:01]} Bg7 {[%emt 0:00:02]} 4. Nc3 {[%emt 0:00:01]} Bg4
{[%emt 0:00:04]} 5. e3 {[%emt 0:01:13]} Nc6 {[%emt 0:00:01]} 6. Be2 {[%emt 0:
00:04]} e5 {[%emt 0:00:27]} 7. d5 {[%emt 0:00:08]} Nce7 {[%emt 0:00:04]} 8. e4
{[%emt 0:00:25]} Nf6 {[%emt 0:00:20]} 9. h3 {[%emt 0:00:03]} Bd7 {[%emt 0:00:
06]} 10. Be3 {[%emt 0:00:06]} O-O {[%emt 0:00:29]} 11. O-O {[%emt 0:00:30]} Nh5
{[%emt 0:00:09]} 12. Qd2 {[%emt 0:00:41]} b6 {[%emt 0:00:19]} 13. Nh2 {[%emt 0:
00:44]} Nf4 {[%emt 0:00:09]} 14. Bxf4 {[%emt 0:00:51]} exf4 {[%emt 0:00:02]}
15. Qxf4 {[%emt 0:00:02]} f5 {[%emt 0:00:17]} 16. exf5 {[%emt 0:00:37]} Nxf5 {
[%emt 0:00:49]} 17. Ng4 {[%emt 0:01:40]} h5 {[%emt 0:01:59]} 18. Ne3 {[%emt 0:
00:05]} Bh6 {[%emt 0:00:49]} 19. Qe4 {[%emt 0:01:09]} Re8 {[%emt 0:00:02]} 20.
Qd3 {[%emt 0:01:11]} Bxe3 {[%emt 0:02:15]} 21. fxe3 {[%emt 0:00:01]} Rxe3 {
[%emt 0:00:02]} 22. Qd2 {[%emt 0:00:01]} Qe7 {[%emt 0:00:43]} 23. Rf3 {[%emt 0:
01:22]} Re8 {[%emt 0:01:29]} 24. Rxe3 {[%emt 0:00:13]} Nxe3 {[%emt 0:00:01]}
25. Bd3 {[%emt 0:00:17]} Nf5 {[%emt 0:01:43]} 26. Ne4 {[%emt 0:00:09]} Qe5 {
[%emt 0:00:43]} 27. Qg5 {[%emt 0:00:43]} Kg7 {[%emt 0:00:01]} 28. Qd2 {[%emt 0:
01:09]} Qd4+ {[%emt 0:00:07]} 29. Nf2 {[%emt 0:00:01]} Ne3 {[%emt 0:01:02]} 30.
Qc3 {[%emt 0:00:16]} Qxc3 {[%emt 0:00:03]} 31. bxc3 {[%emt 0:00:00]} Bf5 {
[%emt 0:00:11]} 32. Re1 {[%emt 0:00:06]} Kf7 {[%emt 0:00:35]} 33. Bxf5 {[%emt
0:01:00]} gxf5 {[%emt 0:00:07]} 34. Nd3 {[%emt 0:00:46]} Re4 {[%emt 0:01:26]}
35. Nb2 {[%emt 0:00:21]} Kf6 {[%emt 0:01:02]} 36. Kf2 {[%emt 0:00:02]} Nc2 {
[%emt 0:01:13]} 37. Rxe4 {[%emt 0:01:38]} fxe4 {[%emt 0:00:01]} 38. Nd1 {[%emt
0:01:03]} Ke5 {[%emt 0:00:47]} 39. g3 {[%emt 0:00:13]} b5 {[%emt 0:00:16]} 40.
cxb5 {[%emt 0:01:03]} Na3 {[%emt 0:00:01]} 41. Ke3 {[%emt 0:00:46]} Nxb5 {
[%emt 0:00:16]} 42. g4 {[%emt 0:00:08]} hxg4 {[%emt 0:00:09]} 43. hxg4 {[%emt
0:00:01]} Na3 {[%emt 0:00:24]} 44. g5 {[%emt 0:00:12]} Nc4+ {[%emt 0:00:01]}
45. Ke2 {[%emt 0:00:15]} Kf5 {[%emt 0:00:50]} 46. Ne3+ {[%emt 0:00:16]} Nxe3 {
[%emt 0:00:01]} 47. Kxe3 {[%emt 0:00:01]} Kxg5 {[%emt 0:00:01]} 48. Kxe4 {
[%emt 0:00:01]} Kg4 {[%emt 0:00:05]} 49. c4 {[%emt 0:00:14]} Kg5 {[%emt 0:00:
09]} 50. Ke3 {[%emt 0:00:02]} a6 {[%emt 0:00:21]} 51. a3 {[%emt 0:00:01]} a5 {
[%emt 0:00:28]} 52. a4 {[%emt 0:00:01]} Kg4 {[%emt 0:00:03]} 53. Ke4 {[%emt 0:
00:00]} Kg5 {[%emt 0:00:00]} 54. Ke3 {[%emt 0:00:02]} Kf5 {[%emt 0:00:26]} 55.
Kf3 {[%emt 0:00:00]} Ke5 {[%emt 0:00:01]} 56. Ke3 {[%emt 0:00:01]} Kf5 {[%emt
0:00:34]} 57. Kf3 {[%emt 0:00:01]} Kg5 {[%emt 0:00:02]} 58. Kg3 {[%emt 0:00:01]
} 1/2-1/2

[Event "16th EWICC 2015"]
[Site "Kutaisi"]
[Date "2015.06.03"]
[Round "10"]
[White "Dordzhieva, Dinara"]
[Black "Khmiadashvili, Tamar"]
[Result "1-0"]
[ECO "A04"]
[WhiteElo "2242"]
[BlackElo "2043"]
[Annotator "Robot 11"]
[PlyCount "97"]
[EventDate "2015.??.??"]
[EventCountry "GEO"]
[TimeControl "900+10"]

1. Nf3 {[%emt 0:00:01]} f5 {[%emt 0:00:09]} 2. d3 {[%emt 0:00:02]} Nf6 {[%emt
0:00:11]} 3. Nc3 {[%emt 0:00:01]} d5 {[%emt 0:00:05]} 4. g3 {[%emt 0:01:26]} e6
{[%emt 0:00:06]} 5. Bg2 {[%emt 0:00:02]} Bb4 {[%emt 0:00:04]} 6. O-O {[%emt 0:
00:05]} O-O {[%emt 0:00:03]} 7. a3 {[%emt 0:00:37]} Be7 {[%emt 0:00:12]} 8. e4
{[%emt 0:00:57]} d4 {[%emt 0:00:06]} 9. Ne2 {[%emt 0:00:24]} Nc6 {[%emt 0:00:
57]} 10. exf5 {[%emt 0:00:11]} e5 {[%emt 0:00:12]} 11. c3 {[%emt 0:02:36]} Bxf5
{[%emt 0:00:58]} 12. cxd4 {[%emt 0:01:46]} Nxd4 {[%emt 0:02:08]} 13. Nexd4 {
[%emt 0:01:25]} exd4 {[%emt 0:00:03]} 14. Qb3+ {[%emt 0:00:01]} Kh8 {[%emt 0:
00:37]} 15. Ne5 {[%emt 0:00:01]} Rb8 {[%emt 0:03:25]} 16. Nf7+ {[%emt 0:00:45]}
Rxf7 {[%emt 0:00:04]} 17. Qxf7 {[%emt 0:00:00]} Bxd3 {[%emt 0:00:18]} 18. Re1 {
[%emt 0:00:13]} Ng8 {[%emt 0:01:24]} 19. Bf4 {[%emt 0:00:54]} Bg6 {[%emt 0:01:
03]} 20. Qe6 {[%emt 0:00:09]} Bd6 {[%emt 0:01:23]} 21. Bxd6 {[%emt 0:00:46]}
cxd6 {[%emt 0:00:19]} 22. Be4 {[%emt 0:00:26]} Be8 {[%emt 0:00:56]} 23. Rad1 {
[%emt 0:01:08]} Qb6 {[%emt 0:00:39]} 24. b4 {[%emt 0:01:50]} Ba4 {[%emt 0:00:
30]} 25. Rd2 {[%emt 0:00:02]} Nf6 {[%emt 0:00:09]} 26. Qf5 {[%emt 0:01:04]} Re8
{[%emt 0:00:38]} 27. Rde2 {[%emt 0:00:16]} Bd7 {[%emt 0:01:15]} 28. Qf4 {[%emt
0:00:05]} Bb5 29. Bd3 {[%emt 0:00:49]} Rxe2 {[%emt 0:00:59]} 30. Rxe2 {[%emt 0:
00:02]} Bd7 {[%emt 0:00:42]} 31. Rd2 {[%emt 0:00:56]} a5 {[%emt 0:00:19]} 32.
b5 {[%emt 0:00:14]} Qc5 {[%emt 0:00:06]} 33. Bf1 {[%emt 0:00:18]} Bxb5 {[%emt
0:00:14]} 34. Bxb5 {[%emt 0:00:20]} Qxb5 {[%emt 0:00:02]} 35. Qxd4 {[%emt 0:00:
03]} d5 {[%emt 0:00:04]} 36. Rb2 {[%emt 0:00:13]} Qc6 {[%emt 0:00:01]} 37. Kg2
{[%emt 0:00:04]} h6 {[%emt 0:00:03]} 38. a4 {[%emt 0:00:21]} Kh7 {[%emt 0:00:
19]} 39. Rb5 {[%emt 0:00:04]} Qc2 {[%emt 0:00:13]} 40. Rxb7 {[%emt 0:00:20]}
Kg6 {[%emt 0:00:11]} 41. Rb5 {[%emt 0:00:04]} Qe2 {[%emt 0:00:23]} 42. Rxa5 {
[%emt 0:00:17]} h5 {[%emt 0:00:01]} 43. h4 {[%emt 0:00:17]} Qc2 {[%emt 0:00:20]
} 44. Rc5 {[%emt 0:00:05]} Qa2 {[%emt 0:00:05]} 45. a5 {[%emt 0:00:05]} Qe2 {
[%emt 0:00:12]} 46. Rc6 {[%emt 0:00:09]} Kh7 {[%emt 0:00:04]} 47. a6 {[%emt 0:
00:04]} Ne4 {[%emt 0:00:08]} 48. Rc7 {[%emt 0:00:11]} Qg4 {[%emt 0:00:08]} 49.
Rxg7+ {[%emt 0:00:12]} 1-0